[Event "Swiss National League-A 2024"]
[Site "Luzern"]
[Date "2024.10.12"]
[Round "8.1"]
[White "Demuth, Adrien"]
[Black "Santos Ruiz, Miguel"]
[Result "1/2-1/2"]
[ECO "A14"]
[WhiteElo "2514"]
[BlackElo "2598"]
[Annotator "TA"]
[PlyCount "60"]
[EventDate "2023.10.03"]
[EventType "team-tourn"]
[EventCountry "SUI"]
[SourceTitle "playchess.com"]
[Source "ChessBase"]
[SourceQuality "1"]
[TimeControl "40/8400+30:20/3000+30:900+30"]

{[%evp 24,60,14,20,14,9,6,7,12,0,0,0,0,0,0,0,0,0,0,0,0,0,0,0,0,0,0,0,0,0,0,0,0,0,0,0,0,0,0]} 1. Nf3 {[%emt 0:40:04]} d5 {[%emt 0:40:05]} 2. g3 {[%emt 0:00:05]} Nf6 {[%emt 0:00:05]} 3. Bg2 {[%emt 0:00:07]} e6 {[%emt 0:00:03]} 4. O-O {[%emt 0:00:31]} Be7 {[%emt 0:00:03]} 5. c4 {[%emt 0:00:11]} O-O {[%emt 0:00:05]} 6. b3 {[%emt 0:00:03]} c5 {[%emt 0:00:03]} 7. cxd5 {[%emt 0:00:50]} Nxd5 {[%emt 0:00:05]} 8. Bb2 {[%emt 0:00:06]} Nc6 {[%emt 0:00:03]} 9. d4 {[%emt 0:01:07]} cxd4 {[%emt 0:01:30]} 10. Nxd4 {[%emt 0:00:07]} Bd7 {[%emt 0:00:06]} 11. Nc3 {[%emt 0:14:53]} Nxc3 {[%emt 0:00:16]} 12. Bxc3 {[%emt 0:00:06]} Rc8 {[%emt 0:00:04]} 13. Rc1 {[%emt 0:08:01][%cal Ba1c1,Bc1c2,Bc2b2][%mdl 32] Die Stellung ist ausgeglichen.} Ba3 {[%emt 0:00:15]} 14. Rc2 {[%emt 0:00:32]} Qe7 {[%emt 0:00:04]} 15. Nxc6 {[%emt 0:27:06]} Bxc6 {[%emt 0:00:13]} 16. Bb2 {[%emt 0:00:09]} Bxb2 {[%emt 0:05:26]} 17. Rxb2 {[%emt 0:01:03]} Rfd8 {[%emt 0:01:49]} 18. Rd2 {[%emt 0:01:58]} Bxg2 {[%emt 0:00:33]} 19. Kxg2 {[%emt 0:00:04]} g6 {[%emt 0:01:52]} 20. e3 {[%emt 0:04:02]} Qf6 {[%emt 0:07:38]} 21. Rxd8+ {[%emt 0:01:22]} Rxd8 $11 {[%emt 0:00:16][%mdl 4096] Endspiel. KQR-KQR} 22. Qc2 {[%emt 0:00:40]} Kg7 {[%emt 0:09:54]} 23. Rd1 {[%emt 0:01:53]} Rxd1 {[%emt 0:00:27]} 24. Qxd1 {[%emt 0:00:06] KQ-KQ} Qb2 {[%emt 0:00:03]} 25. Qd7 {[%emt 0:00:51]} Qxa2 {[%emt 0:00:14]} 26. Qd4+ {[%emt 0:01:07]} Kg8 {[%emt 0:00:04][%cal Oa2a5]} 27. Qd8+ {[%emt 0:00:06]} Kg7 {[%emt 0:00:02][%cal Oa2b2]} 28. Qd4+ {[%emt 0:00:08]} Kg8 {[%emt 0:00:02][%cal Oa2a5]} 29. Qd8+ {[%emt 0:00:07]} Kg7 {[%emt 0:00:02][%cal Oa2b2]} 30. Qd4+ {[%emt 0:00:06]} Kg8 {[%emt 0:00:02] Hier war wenig los.   Gewichteter Fehlerwert: Weiß=0.01 (makellos) /Schwarz=0.00 (makellos) .  OK:         	Weiß=8     	Schwarz=7} 1/2-1/2

[Event "Swiss National League-A 2024"]
[Site "Luzern"]
[Date "2024.10.12"]
[Round "8.2"]
[White "Georgiadis, Nico"]
[Black "Ragger, Markus"]
[Result "1/2-1/2"]
[ECO "E01"]
[WhiteElo "2518"]
[BlackElo "2584"]
[Annotator "TA"]
[PlyCount "71"]
[EventDate "2023.10.03"]
[EventType "team-tourn"]
[EventCountry "SUI"]
[SourceTitle "playchess.com"]
[Source "ChessBase"]
[SourceQuality "1"]
[TimeControl "40/8400+30:20/3000+30:900+30"]

{[%evp 9,71,22,39,29,18,18,24,15,9,32,23,16,31,30,31,20,20,23,23,25,28,32,64,62,70,66,74,43,36,31,37,46,50,57,88,114,113,112,115,94,110,110,116,93,76,47,49,0,25,1,80,74,75,75,75,81,88,84,90,0,70,39,48,0]} 1. d4 {[%emt 0:40:04]} Nf6 {[%emt 0:40:02]} 2. c4 {[%emt 0:00:10]} e6 {[%emt 0:00:07]} 3. Nf3 {[%emt 0:00:12]} d5 {[%emt 0:00:02]} 4. g3 {[%emt 0:00:15]} Nc6 {[%emt 0:00:25]} 5. Bg2 {[%emt 0:00:07]} Rb8 {[%emt 0:00:16]} 6. b3 {[%emt 0:04:27]} dxc4 {[%emt 0:00:46]} 7. bxc4 {[%emt 0:00:07]} Bb4+ {[%emt 0:00:05]} 8. Bd2 {[%emt 0:00:17] White has an edge.} Bxd2+ {[%emt 0:00:13]} 9. Qxd2 {[%emt 0:00:11]} ({Much weaker is} 9. Nbxd2 Nxd4 10. Nxd4 Qxd4 $17) 9... O-O {[%emt 0:00:22]} 10. O-O {[%emt 0:01:38]} b6 {[%emt 0:00:08]} 11. Qc3 {[%emt 0:01:40]} Re8 {[%emt 0:15:23]} 12. Nbd2 {[%emt 0:04:47]} Qe7 {[%emt 0:01:55]} 13. e4 {[%emt 0:00:48]} e5 {[%emt 0:02:13]} 14. d5 {[%emt 0:02:17]} Na5 {[%emt 0:17:06][%cal Bc6a5,Ba5b7,Bb7d6][%mdl 32] [#]} 15. c5 $1 {[%emt 0:18:54][%cal Bc4c5,Bc5c6][%mdl 32]} Nb7 {[%emt 0:25:02]} (15... Qxc5 16. Qxc5) 16. c6 {[%emt 0:06:24]} Nd6 {[%emt 0:00:03]} 17. Rfe1 {[%emt 0:00:31][%cal Oc3e5]} Bg4 {[%emt 0:00:58]} 18. Nxe5 {[%emt 0:22:20]} Qxe5 {[%emt 0:01:45]} 19. Qxe5 {[%emt 0:00:06]} Rxe5 {[%emt 0:00:03]} 20. f4 {[%emt 0:06:05]} Re7 {[%emt 0:09:40][%cal Of6e4] [#] White must now prevent ...Nfxe4!} 21. e5 {[%emt 0:00:35]} Nfe8 {[%emt 0:05:23]} 22. h3 $1 {[%emt 0:01:07][%cal Oe5d6]} Bf5 {[%emt 0:00:11]} 23. g4 $1 {[%emt 0:02:05]} Bd3 {[%emt 0:00:12]} 24. exd6 {[%emt 0:08:52]} Rxe1+ {[%emt 0:00:08]} 25. Rxe1 {[%emt 0:00:05]} Nxd6 {[%emt 0:00:09]} 26. Re3 {[%emt 0:01:05]} Bc2 {[%emt 0:04:59]} 27. Re7 {[%emt 0:08:21]} Rc8 {[%emt 0:00:44]} 28. Bf1 {[%emt 0:10:12]} (28. Kf2 $14 {feels stronger.}) 28... b5 {[%emt 0:03:42]} 29. Kf2 {[%emt 0:00:42]} a6 {[%emt 0:03:30]} (29... Kf8 $11 {remains equal.} 30. Rd7 h5) 30. Ke3 $16 {[%emt 0:05:17] White has more active pieces.} Kf8 {[%emt 0:11:14]} 31. Rd7 {[%emt 0:00:04]} Re8+ {[%emt 0:00:48]} 32. Kd4 {[%emt 0:00:09]} Re7 {[%emt 0:00:02]} 33. Rd8+ {[%emt 0:00:15]} Re8 {[%emt 0:00:01]} 34. Rd7 {[%emt 0:00:06]} Re7 {[%emt 0:00:01]} 35. Kc3 {[%emt 0:03:21]} Be4 {[%emt 0:01:19]} 36. Kd4 {[%emt 0:03:09] Weighted Error Value: White=0.14 (very precise) /Black=0.09 (flawless) .  Mistake:       	White=2     	Black=1      Inaccurate:     	White=3     	Black=2      OK:         	White=10    	Black=15     Best:        	White=3     	Black=5      Strong:       	White=2     	---} (36. Rd8+ $14 {should be considered.} Re8 37. Rxe8+ Kxe8 38. Kd4) 1/2-1/2

[Event "Swiss National League-A 2024"]
[Site "Luzern"]
[Date "2024.10.12"]
[Round "8.3"]
[White "Georgiadis, Ioannis"]
[Black "Kaczmarczyk, Dennis"]
[Result "0-1"]
[ECO "E05"]
[WhiteElo "2484"]
[BlackElo "2463"]
[Annotator "TA"]
[PlyCount "57"]
[EventDate "2023.10.03"]
[EventType "team-tourn"]
[EventCountry "SUI"]
[SourceTitle "playchess.com"]
[Source "ChessBase"]
[SourceQuality "1"]
[TimeControl "40/8400+30:20/3000+30:900+30"]

{[%evp 13,57,10,10,9,0,-15,-5,0,0,0,0,0,0,0,0,0,0,0,0,0,0,0,0,0,4,0,0,0,0,0,67,61,71,76,58,-42,-31,-105,-75,-348,-354,-375,-371,-405,-398,-29983]} 1. d4 {[%emt 0:40:12]} Nf6 {[%emt 0:40:17]} 2. c4 {[%emt 0:00:32]} e6 {[%emt 0:00:42]} 3. Nf3 {[%emt 0:00:59]} d5 {[%emt 0:02:21]} 4. g3 {[%emt 0:02:18]} Be7 {[%emt 0:00:44]} 5. Bg2 {[%emt 0:00:11]} O-O {[%emt 0:00:13]} 6. O-O {[%emt 0:00:17]} dxc4 {[%emt 0:00:30]} 7. Qc2 {[%emt 0:01:26]} b5 {[%emt 0:00:55]} 8. a4 {[%emt 0:02:02]} b4 {[%emt 0:00:26]} 9. Ne5 {[%emt 0:04:04]} Qxd4 $1 {[%emt 0:03:10]} 10. Bxa8 {[%emt 0:02:50] The position is equal.} Qxe5 {[%emt 0:00:07]} 11. Bf4 {[%emt 0:01:06]} Qh5 {[%emt 0:15:02] ...Ng4 is the strong threat.} 12. Bf3 {[%emt 0:01:49]} (12. Qxc4 Ng4 13. h4 (13. Bxc7 $2 Qxh2#) 13... e5 $17) 12... Ng4 $1 {[%emt 0:04:19]} 13. Bxg4 {[%emt 0:07:53]} (13. Bxc7 $2 Qxh2#) 13... Qxg4 {[%emt 0:00:05]} 14. Qxc4 {[%emt 0:00:47]} e5 $1 {[%emt 0:09:22]} 15. Qxc7 {[%emt 0:00:57]} exf4 {[%emt 0:00:13]} (15... Nc6 $6 16. Be3 (16. Bxe5 $2 Qe6 $19) 16... Qe6 17. Rc1 $16 (17. Bxa7 $2 Bd8 $19)) 16. Qxe7 {[%emt 0:00:26]} (16. Qxb8 $2 fxg3 (16... Qxe2 17. Qxf4 Bh3 18. Nd2 $17) 17. hxg3 Qxe2 18. Qxa7 Bh3 $19 (18... Qxb2 19. Nd2 $11) (18... Qxb2 19. Nc3 $14)) 16... fxg3 $1 {[%emt 0:00:18]} 17. Nd2 {[%emt 0:01:02]} (17. Qxa7 $2 gxf2+ 18. Kxf2 Re8 $19) (17. hxg3 $2 Nc6 18. Qd6 Nd4 $19) 17... gxf2+ {[%emt 0:06:28]} 18. Kxf2 {[%emt 0:00:36][%cal Od2f3]} Nc6 {[%emt 0:01:51] The board is on fire.} 19. Qe4 {[%emt 0:01:27]} Qd7 {[%emt 0:00:24]} 20. Nf3 {[%emt 0:03:59] Rfd1 would now be deadly.} Re8 {[%emt 0:02:22]} 21. Qf4 {[%emt 0:03:21]} Bb7 {[%emt 0:10:34]} (21... Re6 $11) 22. Rfd1 $1 $14 {[%emt 0:36:50]} Qe7 {[%emt 0:00:27][%cal Oh7h5]} 23. Kg3 {[%emt 0:02:39]} h6 {[%emt 0:21:43][%cal Og7g5]} (23... Qxe2 $2 24. Rd7 Qe6 (24... Qxb2 25. Qxf7+ Kh8 26. Qxe8#) 25. Rxb7 $18) 24. Rac1 {[%emt 0:02:52]} (24. h4 $1 $14) 24... g5 $1 $15 {[%emt 0:11:50]} (24... Qxe2 $2 25. Re1 $18) 25. Qd2 {[%emt 0:29:46]} ({White should try} 25. Qf5 $15 Qe3 (25... Qxe2 $2 26. Re1 $18) 26. Rd7) 25... Qe4 $36 {[%emt 0:05:20][%mdl 2048] Black is really pushing.} (25... Qxe2 $2 26. Re1 $18) 26. Rc5 {[%emt 0:01:40][%mdl 8192] [#] Inhibits Ne5. Now White is beyond hope.} (26. Nxg5 $17 Qe5+ (26... hxg5 27. Qxg5+ Kh7 28. Rc4 $11) 27. Qf4 Qxf4+ (27... Qxg5+ 28. Qxg5+ hxg5 29. Rd7 $17) (27... hxg5 28. Qxe5 Nxe5 29. Rf1 $19) 28. Kxf4 hxg5+ 29. Kxg5 Re5+ (29... Rxe2 30. Rd7 $15) 30. Kh4) 26... Ne5 $1 $19 {[%emt 0:01:19]} (26... Qxe2 $2 {perishes.} 27. Re1 $18) 27. Rxe5 {[%emt 0:01:26] Black is winning.} Rxe5 {[%emt 0:00:09]} 28. Qd8+ {[%emt 0:00:29] [#]} Kh7 $1 {[%emt 0:07:59] Strongly threatening ...Qf4+.} 29. Rd7 $2 {[%emt 0:00:00] Weighted Error Value: White=0.30/Black=0.05 (flawless) .  Loses game:     	White=1     	---        Mistake:       	White=3     	Black=1      OK:         	White=9     	Black=7      Best:        	White=2     	Black=2      Strong:       	White=1     	Black=7} (29. Rd4 $19 Qxe2 30. Qf6 Qxf3+ (30... Bd5 $2 31. Rxd5 Rxd5 32. Qxf7+ Kh8 33. Qxd5 $18) 31. Qxf3 Bxf3 32. Kxf3) 0-1

[Event "Swiss National League-A 2024"]
[Site "Luzern"]
[Date "2024.10.12"]
[Round "8.4"]
[White "Hasenohr, Benedict"]
[Black "Breder, Dennis"]
[Result "0-1"]
[ECO "D06"]
[WhiteElo "2277"]
[BlackElo "2404"]
[Annotator "TA"]
[PlyCount "70"]
[EventDate "2023.10.03"]
[EventType "team-tourn"]
[EventCountry "SUI"]
[SourceTitle "playchess.com"]
[Source "ChessBase"]
[SourceQuality "1"]
[TimeControl "40/8400+30:20/3000+30:900+30"]

{[%evp 9,70,-46,-54,-51,25,19,14,-106,-88,-154,-161,-183,-180,-182,-150,-139,-135,-150,-175,-157,-152,-232,-226,-235,-197,-181,-145,-174,-125,-147,-137,-210,-220,-345,-167,-162,-90,-85,-74,-53,-45,-90,-93,-118,-50,-253,-235,-424,-421,-347,-351,-363,0,-860,-760,-753,-753,-1489,-1390,-5795,-1060,-29990,-29991]} 1. d4 {[%emt 0:40:03]} d5 {[%emt 0:40:08]} 2. Nf3 {[%emt 0:00:26]} Bf5 {[%emt 0:02:56]} 3. c4 {[%emt 0:01:12]} e6 {[%emt 0:00:04]} 4. Qb3 {[%emt 0:03:27]} Nc6 {[%emt 0:07:07]} 5. Bf4 {[%emt 0:11:49]} Nb4 $1 {[%emt 0:37:04]} 6. Na3 {[%emt 0:01:57] Prevents Nc2+} c6 {[%emt 0:05:25]} (6... dxc4 $1 $15 7. Qxc4 c6) 7. c5 $11 {[%emt 0:13:00]} a5 {[%emt 0:00:06]} 8. Bd2 {[%emt 0:02:02]} (8. Rc1 $11) 8... b6 $17 {[%emt 0:03:18]} 9. Rc1 {[%emt 0:04:23]} (9. cxb6 $142 a4 (9... Qxb6 10. Nh4 $17) 10. Qd1) 9... Nf6 {[%emt 0:05:01]} 10. e3 {[%emt 0:15:51][%cal Oa3b5]} bxc5 {[%emt 0:02:42]} 11. dxc5 {[%emt 0:01:56][%cal Of3d4]} Ne4 {[%emt 0:08:02]} 12. Bxb4 {[%emt 0:05:10]} axb4 {[%emt 0:00:04]} 13. Qxb4 {[%emt 0:00:50]} Bxc5 {[%emt 0:20:22]} 14. Rxc5 {[%emt 0:21:30]} Qe7 {[%emt 0:00:06]} 15. Rb5 {[%emt 0:01:38]} (15. Bb5 $17 O-O 16. Rc4) 15... cxb5 $19 {[%emt 0:00:30]} 16. Bxb5+ {[%emt 0:00:10]} Kf8 {[%emt 0:00:00]} 17. Qb3 {[%emt 0:02:22]} f6 {[%emt 0:07:47]} 18. Nd4 {[%emt 0:01:35]} Bg6 {[%emt 0:00:02]} (18... Qc5 $19 {...Qc1+ would now be deadly.} 19. Ke2 Kf7 20. Nxf5 exf5) 19. f3 {[%emt 0:07:18]} Nd6 {[%emt 0:03:40]} 20. Bc6 {[%emt 0:00:03]} (20. O-O $17 {was worth a try.}) 20... Rc8 {[%emt 0:00:18]} 21. f4 {[%emt 0:00:03]} (21. Qb6 $142) 21... Nf5 {[%emt 0:00:34]} (21... Be8 $142 22. Bxe8 Rc1+ (22... Rxe8 23. Nab5 $17) 23. Ke2 Rxh1) 22. Nab5 {[%emt 0:01:12]} Nxd4 {[%emt 0:02:01]} (22... Be8 $19 23. Nxf5 exf5 24. Bxe8 Rc1+ (24... Kxe8 25. O-O $11) (24... Qxe8 25. Nd6 $16) (24... Rxe8 25. Kf2 $15) 25. Kf2 Rxh1) 23. Nxd4 $17 {[%emt 0:00:03]} Be8 {[%emt 0:01:20]} 24. Bxe8 {[%emt 0:03:23]} Kxe8 {[%emt 0:01:51]} (24... Rc1+ $2 25. Ke2 Rxh1 26. Bh5 $19) 25. O-O {[%emt 0:00:59]} g6 $1 {[%emt 0:00:03]} 26. e4 {[%emt 0:00:53] [#]} Qc5 {[%emt 0:00:25]} (26... dxe4 27. Nxe6 Qa7+ 28. Kh1 $11) (26... Rc4 $1 $17 {[%cal Rc4d4]} 27. Qb8+ Qd8 28. Qxd8+ Kxd8 29. Nxe6+ Ke7 30. exd5 Rc2) 27. Qa4+ {[%emt 0:00:02]} ({Only move:} 27. Rd1 $1 $15) 27... Ke7 $19 {[%emt 0:00:52]} 28. exd5 $2 {[%emt 0:01:00]} (28. e5 {only move.}) 28... e5 {[%emt 0:01:44]} (28... exd5 29. Re1+ Kf8 30. Kh1 $11) 29. fxe5 {[%emt 0:01:41]} fxe5 {[%emt 0:00:03]} 30. d6+ {[%emt 0:04:18] [#]} Kxd6 $2 {[%emt 0:00:14]} ({Less strong is} 30... Qxd6 31. Nf3 $17) ({Better is} 30... Kd8 $1 $19 31. b4 Qb6 (31... Qxd4+ $2 32. Kh1 $19) (31... Qxd6 32. Nf3 $11)) 31. Rf6+ $2 {[%emt 0:01:56][%mdl 8192]} (31. Qa6+ $11 Ke7 (31... Kd5 32. Qb7+ Kxd4 33. Rd1+ Kc4+ 34. Kh1 $16) 32. Qf6+ Kd7 33. Qg7+ Kd6 (33... Qe7 $2 34. Rf7 $18) 34. Rf6+ Kd5 35. Qd7+ Ke4 36. Qg4+ Kd5 37. Qd7+ Ke4 38. Qg4+ Kd5 39. Qd7+) 31... Ke7 {[%emt 0:00:49]} 32. Re6+ {[%emt 0:03:40]} Kf8 {[%emt 0:00:01]} 33. Rf6+ {[%emt 0:00:36]} Kg7 {[%emt 0:00:52]} 34. Rf4 {[%emt 0:00:29]} Rhd8 {[%emt 0:01:12] Active counter play!} (34... Rhf8 $142 35. Qd7+ Kh8) 35. Qb3 {[%emt 0:00:25]} exf4 {[%emt 0:00:16] Weighted Error Value: White=1.08/Black=0.50.  Loses game:     	White=2     	---        Missed win:     	---       	Black=1      Mistake:       	White=6     	Black=5      Inaccurate:     	White=1     	---        OK:         	White=5     	Black=8      Best:        	White=1     	Black=4      Strong:       	---       	Black=1} 0-1

[Event "Swiss National League-A 2024"]
[Site "Luzern"]
[Date "2024.10.12"]
[Round "8.5"]
[White "Haag, Gregor"]
[Black "Ballmann, Martin"]
[Result "1-0"]
[ECO "A46"]
[WhiteElo "2335"]
[BlackElo "2326"]
[Annotator "RC"]
[PlyCount "57"]
[EventDate "2023.10.03"]
[EventType "team-tourn"]
[EventCountry "SUI"]
[SourceTitle "playchess.com"]
[Source "ChessBase"]
[SourceQuality "1"]
[TimeControl "40/8400+30:20/3000+30:900+30"]

1. d4 {[%emt 0:40:04]} e6 {[%emt 0:40:16]} 2. Nf3 {[%emt 0:00:20]} c5 {[%emt 0:02:17]} 3. g3 {[%emt 0:03:36]} Nf6 {[%emt 0:05:15]} 4. Bg2 {[%emt 0:00:29]} Nc6 {[%emt 0:04:49]} 5. O-O {[%emt 0:00:46]} cxd4 {[%emt 0:06:05]} 6. Nxd4 {[%emt 0:01:10]} a6 {[%emt 0:00:25]} 7. c4 {[%emt 0:07:32]} Qc7 {[%emt 0:10:22]} 8. b3 {[%emt 0:10:05]} Nxd4 {[%emt 0:06:52]} 9. Qxd4 {[%emt 0:00:39]} Bc5 {[%emt 0:02:22]} 10. Qd3 {[%emt 0:05:34]} O-O {[%emt 0:08:17]} 11. Nc3 {[%emt 0:03:20]} d6 {[%emt 0:17:06]} 12. Bg5 {[%emt 0:22:28]} Ng4 {[%emt 0:11:46]} 13. Ne4 {[%emt 0:05:39]} Ne5 {[%emt 0:03:15]} 14. Qd2 {[%emt 0:01:19]} Ba3 {[%emt 0:04:52]} 15. Rad1 {[%emt 0:11:56]} Ng6 {[%emt 0:08:49]} 16. Nxd6 {[%emt 0:07:48]} Rb8 {[%emt 0:05:35]} 17. b4 {[%emt 0:06:35]} h6 {[%emt 0:01:12]} 18. Be3 {[%emt 0:01:45]} Rd8 {[%emt 0:01:03]} 19. Nb5 {[%emt 0:05:25]} Rxd2 {[%emt 0:00:15]} 20. Nxc7 {[%emt 0:00:03]} Rd7 {[%emt 0:02:38]} 21. Ba7 {[%emt 0:01:23]} Rxc7 {[%emt 0:00:12]} 22. Bxb8 {[%emt 0:00:08]} Rxc4 {[%emt 0:00:08]} 23. Rd8+ {[%emt 0:02:32]} Kh7 {[%emt 0:00:43]} 24. Bd6 {[%emt 0:00:45]} b5 {[%emt 0:02:49]} 25. Bc5 {[%emt 0:01:07]} Rxc5 {[%emt 0:01:15]} 26. bxc5 {[%emt 0:00:08]} Ne7 {[%emt 0:00:07]} 27. Re8 {[%emt 0:01:32]} Bxc5 {[%emt 0:01:12]} 28. Rc1 {[%emt 0:00:38]} Bd7 {[%emt 0:00:28]} 29. Rxe7 {[%emt 0:00:44]} 1-0

[Event "Swiss National League-A 2024"]
[Site "Luzern"]
[Date "2024.10.12"]
[Round "8.6"]
[White "Georgescu, Lena"]
[Black "Renet, Olivier"]
[Result "1/2-1/2"]
[ECO "C84"]
[WhiteElo "2236"]
[BlackElo "2417"]
[Annotator "TA"]
[PlyCount "75"]
[EventDate "2023.10.03"]
[EventType "team-tourn"]
[EventCountry "SUI"]
[SourceTitle "playchess.com"]
[Source "ChessBase"]
[SourceQuality "1"]
[TimeControl "40/8400+30:20/3000+30:900+30"]

{[%evp 16,75,27,31,21,34,42,33,26,27,32,40,29,24,38,25,43,41,28,35,37,21,33,32,54,39,75,51,47,54,85,58,57,58,57,27,62,42,55,43,81,47,90,89,106,79,79,77,162,182,184,181,191,179,179,0,40,0,164,0,50,0]} 1. e4 {[%emt 0:40:03]} e5 {[%emt 0:40:55]} 2. Nf3 {[%emt 0:00:05]} Nc6 {[%emt 0:00:14]} 3. Bb5 {[%emt 0:00:31]} a6 {[%emt 0:00:16]} 4. Ba4 {[%emt 0:00:04]} Nf6 {[%emt 0:00:20]} 5. O-O {[%emt 0:00:08]} d6 {[%emt 0:01:56]} 6. Re1 {[%emt 0:04:49]} Bd7 {[%emt 0:01:48]} 7. Bxc6 {[%emt 0:01:56]} Bxc6 {[%emt 0:02:00]} 8. d4 {[%emt 0:00:47]} Be7 {[%emt 0:00:35]} 9. Nc3 {[%emt 0:00:32]} exd4 {[%emt 0:00:20]} 10. Nxd4 {[%emt 0:00:04]} Bd7 {[%emt 0:00:25]} 11. Qf3 {[%emt 0:01:38]} O-O {[%emt 0:00:57]} 12. Bf4 {[%emt 0:01:00]} Re8 {[%emt 0:02:56]} 13. h3 {[%emt 0:08:21]} b5 {[%emt 0:15:43][%cal Bb7b5,Bb5b4][%mdl 32]} 14. Rad1 {[%emt 0:22:07]} b4 {[%emt 0:01:16]} 15. Nce2 {[%emt 0:03:45]} c5 {[%emt 0:04:28]} 16. Nf5 {[%emt 0:04:44]} Bxf5 {[%emt 0:00:27]} 17. exf5 {[%emt 0:00:05]} h6 {[%emt 0:11:59]} 18. g4 {[%emt 0:07:11]} Bf8 {[%emt 0:03:29]} 19. Ng3 {[%emt 0:06:44]} Rxe1+ {[%emt 0:01:40]} 20. Rxe1 {[%emt 0:00:04]} Ra7 {[%emt 0:00:12]} 21. Kg2 {[%emt 0:21:30] White is more active.} Qa8 {[%emt 0:07:00]} 22. Rd1 {[%emt 0:01:11]} Be7 {[%emt 0:13:08]} 23. Qxa8+ {[%emt 0:04:08]} (23. Bxd6 $2 Qxf3+ 24. Kxf3 Rd7 25. Bxe7 (25. g5 $2 hxg5 26. Bxe7 Rxd1 $19) 25... Rxd1 26. Bxc5 Rd2 27. Bxb4 Rxc2 $19) 23... Rxa8 {[%emt 0:00:09]} 24. Kf3 {[%emt 0:00:08]} (24. Bxd6 $2 {perishes.} Rd8 25. Bxe7 (25. g5 $2 hxg5 26. Bxe7 Rxd1 $19) 25... Rxd1 26. Bxc5 a5 $19) 24... d5 {[%emt 0:00:26] Against Ne4} 25. h4 {[%emt 0:05:20][%cal Bh3h4,Bh4g5][%mdl 32]} Rd8 {[%emt 0:00:36]} 26. Re1 {[%emt 0:02:57]} Bf8 {[%emt 0:19:16]} 27. g5 {[%emt 0:01:52]} hxg5 {[%emt 0:01:51]} 28. hxg5 {[%emt 0:00:06]} Ne8 {[%emt 0:00:55]} 29. b3 {[%emt 0:03:34]} Nd6 {[%emt 0:01:21]} 30. Bxd6 {[%emt 0:03:31]} Bxd6 $16 {[%emt 0:00:09][%mdl 4096] Endgame. KRB-KRN} 31. Nh5 {[%emt 0:04:21]} Kf8 {[%emt 0:02:06] [#]} (31... c4 $16) 32. f6 $1 $18 {[%emt 0:01:18]} gxf6 {[%emt 0:00:12]} 33. Nxf6 {[%emt 0:00:11]} Be7 {[%emt 0:00:31]} 34. Nh7+ {[%emt 0:00:34]} Ke8 {[%emt 0:00:07]} 35. Nf6+ {[%emt 0:00:23]} ({White should try} 35. Re5 $18) 35... Kf8 $14 {[%emt 0:00:04]} 36. Nh7+ {[%emt 0:00:26]} (36. Kf4 $14) 36... Ke8 $18 {[%emt 0:00:05]} 37. Nf6+ {[%emt 0:01:21]} (37. Re5 $18) 37... Kf8 $14 {[%emt 0:00:13]} 38. Nh7+ {[%emt 0:01:41] Weighted Error Value: White=0.24 (precise) /Black=0.14 (very precise) .  Mistake:       	White=4     	Black=1      Inaccurate:     	White=3     	Black=7      OK:         	White=10    	Black=8      Best:        	---       	Black=3      Strong:       	White=1     	---} (38. Kf4 $14) 1/2-1/2